bitfinex/quotes_BTCUSD_20251215
["timestamp","ask_amount","ask_price","bid_price","bid_amount"]
[1765762565127,0.02137,89084.0,89076.0,0.01122636]
[1765762565128,0.11237307,89080.0,89076.0,0.01122636]
[1765762565346,0.0218283,89079.0,89077.0,0.01122624]
[1765762565526,0.0445983,89079.0,89077.0,0.01122624]
[1765762565721,0.01528,89078.0,89077.0,0.01122624]
[1765762566153,0.01528,89078.0,89077.0,0.01222624]
[1765762566355,0.01528,89078.0,89067.0,0.0112275]
[1765762566356,0.03805,89078.0,89067.0,0.0112275]
[1765762566557,0.01122649,89075.0,89071.0,0.01122699]
[1765762566809,0.01122649,89075.0,89064.0,0.01122788]
[1765762566810,0.01528,89077.0,89057.0,0.02964889]
[1765762566811,0.22456266,89062.0,89057.0,0.02964889]
[1765762566976,0.011228,89063.0,89054.0,0.22458244]
[1765762566977,0.01122851,89059.0,89055.0,0.01122901]
[1765762567364,0.1388817,89058.0,89055.0,0.01122901]
[1765762567574,0.11237307,89058.0,89055.0,0.23580882]
[1765762567705,0.02277,89063.0,89061.0,0.22456515]
[1765762567915,0.02315578,89063.0,89061.0,0.22456515]
[1765762568116,0.02315578,89063.0,89062.0,0.08464008]
[1765762568701,0.00038578,89063.0,89062.0,0.08625295]
[1765762568958,0.00138578,89063.0,89062.0,0.10232295]
[1765762569318,0.00038578,89063.0,89062.0,0.10232295]
[1765762569536,0.00038578,89063.0,89062.0,0.08625295]
[1765762569731,0.00238578,89063.0,89062.0,0.00161287]
[1765762569962,0.00238578,89063.0,89057.0,0.01122876]
[1765762569964,0.01122813,89062.0,89057.0,0.01122876]
[1765762570193,0.02715578,89063.0,89061.0,0.22456518]
[1765762570538,0.02715578,89063.0,89062.0,0.07521913]
[1765762570539,0.00438578,89063.0,89062.0,0.07521913]
[1765762570743,0.00438578,89063.0,89062.0,0.34346287]
[1765762570744,0.00238578,89063.0,89062.0,0.34346287]
[1765762570926,0.02127347,89099.0,89098.0,0.22447192]
[1765762570927,0.01005,89099.0,89098.0,0.22447192]
[1765762571167,0.11237307,89111.0,89101.0,0.01122321]
[1765762571376,0.01122258,89106.0,89101.0,0.01122321]
[1765762571576,0.01122258,89106.0,89099.0,0.01122347]
[1765762571783,0.01122258,89106.0,89098.0,0.23581052]
[1765762571784,0.01528,89100.0,89098.0,0.00011526]
[1765762571984,0.26157771,89099.0,89098.0,0.00011526]
[1765762572196,0.23974941,89099.0,89098.0,0.00011526]
[1765762572399,0.26251941,89099.0,89098.0,0.00011526]
[1765762572625,0.37489248,89099.0,89098.0,0.00011526]
[1765762574246,0.26451941,89099.0,89098.0,0.00011526]
[1765762574362,0.37689248,89099.0,89098.0,0.00011526]
[1765762577141,1.26451941,89099.0,89098.0,0.00011526]
[1765762577344,1.37689248,89099.0,89098.0,0.00011526]
[1765762577572,1.26613306,89099.0,89098.0,0.00011526]
[1765762577783,1.37850613,89099.0,89098.0,0.00011526]
[1765762577981,1.26613306,89099.0,89098.0,0.00011526]
[1765762578181,1.37850613,89099.0,89098.0,0.00011526]
[1765762578389,1.37850613,89099.0,89064.0,0.25362397]
[1765762578390,0.22455762,89064.0,89056.0,0.02955984]
[1765762578621,0.12035307,89062.0,89060.0,0.2245677]
[1765762578828,0.12035307,89062.0,89060.0,0.00161287]
[1765762579038,0.03805,89061.0,89060.0,0.00161287]
[1765762579356,0.11237307,89057.0,89056.0,0.00011533]
[1765762579575,0.12765307,89057.0,89056.0,0.00011533]
[1765762580455,0.03805,89057.0,89056.0,0.00011533]
[1765762581107,0.03805,89057.0,89056.0,0.00111533]
[1765762581476,0.03805,89057.0,89056.0,0.00011533]
[1765762581683,0.15042307,89057.0,89056.0,0.00011533]
[1765762582457,1.16826307,89057.0,89056.0,0.00011533]
[1765762583784,1.17159813,89057.0,89056.0,0.00011533]
[1765762583918,1.17459813,89057.0,89056.0,0.00011533]
[1765762588106,1.02229813,89057.0,89056.0,0.00011533]
[1765762588306,0.17459813,89057.0,89056.0,0.00011533]
[1765762588518,0.19642643,89057.0,89056.0,0.00011533]
[1765762589141,0.08405336,89057.0,89056.0,0.00011533]
[1765762589341,1.19642643,89057.0,89056.0,0.00011533]
[1765762589541,1.17459813,89057.0,89056.0,0.00011533]
[1765762590802,0.89619813,89057.0,89056.0,0.00011533]
[1765762594227,0.89619813,89057.0,89020.0,0.00038]
[1765762594229,0.01123305,89023.0,89020.0,0.00038]
[1765762594425,0.01123305,89023.0,89020.0,0.00076578]
[1765762594426,0.13676307,89021.0,89020.0,0.00076578]
[1765762594708,0.02439,89021.0,89020.0,0.00076578]
[1765762594909,0.04781,89021.0,89020.0,0.00076578]
[1765762595351,0.16018307,89021.0,89020.0,0.00076578]
[1765762595571,0.16018307,89021.0,89020.0,0.00276578]
[1765762595990,0.16018307,89021.0,89020.0,0.00076578]
[1765762596186,0.16018307,89021.0,89020.0,0.00276578]
[1765762596553,0.16018307,89021.0,89020.0,0.00076578]
[1765762596754,0.16218307,89021.0,89020.0,0.00076578]
[1765762597326,0.16418307,89021.0,89020.0,0.00076578]
[1765762600742,0.18601137,89021.0,89020.0,0.00076578]
[1765762607143,0.20381137,89021.0,89020.0,0.00076578]
[1765762607367,0.18601137,89021.0,89020.0,0.00076578]
[1765762607579,0.20381137,89021.0,89020.0,0.00076578]
[1765762610692,0.18601137,89021.0,89020.0,0.00076578]
[1765762610900,0.20381137,89021.0,89020.0,0.00076578]
[1765762612839,1.58453652,89021.0,89020.0,0.00076578]
[1765762613010,1.47268307,89021.0,89020.0,0.00076578]
[1765762614434,1.47068307,89021.0,89020.0,0.00076578]
[1765762614632,1.47368307,89021.0,89020.0,0.00076578]
[1765762615149,1.47168307,89021.0,89020.0,0.00076578]
[1765762615552,1.47368307,89021.0,89020.0,0.00076578]
[1765762616809,1.48417148,89021.0,89020.0,0.00076578]
[1765762617345,1.4841697,89021.0,89020.0,0.00076578]
[1765762617753,1.4841697,89021.0,89008.0,0.00139984]
[1765762617755,1.11237307,89009.0,89008.0,0.00139984]
[1765762617956,1.11237307,89009.0,88978.0,0.02960196]
[1765762617957,0.22477213,88979.0,88978.0,0.02960196]
[1765762618152,0.22477213,88979.0,88966.0,0.05105336]
[1765762618153,0.22477213,88979.0,88969.0,0.2543989]
[1765762618154,0.00951,88972.0,88969.0,0.2543989]
[1765762618376,0.00951,88972.0,88969.0,0.01296827]
[1765762618377,0.12902307,88970.0,88969.0,0.01296827]
[1765762618621,0.11237307,88970.0,88969.0,0.0017284]
[1765762619015,0.11237307,88970.0,88969.0,0.00011553]
[1765762619016,0.15246307,88970.0,88969.0,0.00011553]
[1765762619581,0.04009,88970.0,88969.0,0.00011553]
[1765762619789,0.01665,88970.0,88969.0,0.00411553]
[1765762619991,0.15246307,88970.0,88969.0,0.00011553]
[1765762620181,0.15246307,88970.0,88969.0,0.00411553]
[1765762620828,0.15246307,88970.0,88969.0,0.00011553]
[1765762621427,0.15246307,88970.0,88969.0,0.00211553]
[1765762622070,0.23602414,88974.0,88971.0,0.01123961]
[1765762622071,0.11237307,88974.0,88971.0,0.01123961]
[1765762622411,0.11237307,88974.0,88971.0,0.01285248]
[1765762622563,0.11237307,88974.0,88972.0,0.22478982]
[1765762622760,0.11237307,88974.0,88972.0,0.22640269]
[1765762623183,0.02278848,88980.0,88972.0,0.22640269]
[1765762623184,0.11237307,88981.0,88980.0,0.22476961]
[1765762623386,0.00951,88992.0,88989.0,0.01123734]
[1765762623583,0.0452683,88991.0,88989.0,0.00161287]
[1765762623831,0.12902307,88990.0,88989.0,0.00161287]
[1765762624127,0.15246307,88990.0,88989.0,0.00161287]
[1765762624342,0.11237307,88990.0,88989.0,0.00161287]
[1765762625348,0.04009,88990.0,88989.0,0.00161287]
[1765762625562,0.15246307,88990.0,88989.0,0.00161287]
[1765762625768,0.15246307,88990.0,88989.0,0.00461287]
[1765762625769,0.12902307,88990.0,88989.0,0.00461287]
[1765762626183,0.01123658,88995.0,88989.0,0.00461287]
[1765762626184,0.01123557,89003.0,89000.0,0.01123595]
[1765762626386,0.02278545,89004.0,89000.0,0.01123595]
[1765762626387,0.0333783,89004.0,89001.0,0.01123582]
[1765762626621,0.14704814,89007.0,89001.0,0.01123582]
[1765762626622,0.0218283,89006.0,89003.0,0.22471152]
[1765762626839,0.11237307,89007.0,89005.0,0.22470537]
[1765762627265,0.11237307,89007.0,89005.0,0.22631824]
[1765762627476,0.01155,89011.0,89005.0,0.22631824]
[1765762627477,0.01155,89011.0,89008.0,0.23593384]
[1765762627692,0.01155,89011.0,89006.0,0.01123519]
[1765762627693,0.02344,89022.0,89006.0,0.01123519]
[1765762627695,0.01155,89025.0,89021.0,0.0112333]
[1765762627997,0.11237307,89034.0,89021.0,0.0112333]
[1765762627998,0.01123153,89035.0,89032.0,0.01123191]
[1765762628192,0.01123153,89035.0,89030.0,0.01123216]
[1765762628193,0.12360486,89033.0,89030.0,0.01123216]
[1765762628403,0.0218283,89032.0,89030.0,0.01123216]
[1765762628615,0.11237307,89033.0,89030.0,0.01123216]
[1765762628823,0.11237307,89033.0,89031.0,0.22464085]
[1765762628998,0.0234,89032.0,89030.0,0.01123216]
[1765762629223,0.01589,89031.0,89030.0,0.01134769]
[1765762629414,0.01589,89031.0,89030.0,0.01334769]
[1765762629818,0.01589,89031.0,89030.0,0.01134769]
[1765762630020,0.15166307,89031.0,89030.0,0.01134769]
[1765762630261,0.15166307,89031.0,89030.0,0.00111553]
[1765762630669,0.15166307,89031.0,89030.0,0.00011553]
[1765762630841,0.17349137,89031.0,89030.0,0.00011553]
[1765762631041,0.17349137,89031.0,89030.0,0.00111553]
[1765762631819,0.17349137,89031.0,89030.0,0.00211553]
[1765762632020,0.17349137,89031.0,89030.0,0.00111553]
[1765762632222,0.17349137,89031.0,89030.0,0.00011553]
[1765762632426,0.17449137,89031.0,89030.0,0.00011553]
[1765762635612,0.0621183,89031.0,89030.0,0.00011553]
[1765762636030,0.0621183,89031.0,89030.0,0.0017284]
[1765762636031,0.001,89031.0,89030.0,0.0017284]
[1765762636503,0.15289307,89031.0,89030.0,0.0017284]
[1765762636704,0.12949307,89031.0,89030.0,0.00011553]
[1765762637370,0.15289307,89031.0,89030.0,0.00011553]
[1765762637591,0.17472137,89031.0,89030.0,0.00011553]
[1765762639472,1.44355768,89031.0,89030.0,0.00011553]
[1765762639673,0.44359307,89031.0,89030.0,0.00011553]
[1765762640100,0.46143307,89031.0,89030.0,0.00011553]
[1765762640259,0.47266574,89031.0,89030.0,0.00011553]
[1765762640456,0.46143307,89031.0,89030.0,0.00011553]
[1765762640660,0.46043307,89031.0,89030.0,0.00011553]
[1765762641106,0.47043307,89031.0,89030.0,0.00111553]
[1765762641314,0.02612,89031.0,89030.0,0.00111553]
[1765762641514,0.0318283,89031.0,89030.0,0.00111553]
[1765762641687,0.0318283,89031.0,89030.0,0.00211553]
[1765762641688,0.0428283,89031.0,89030.0,0.00211553]
[1765762641915,0.15520137,89031.0,89030.0,0.00211553]
[1765762642180,0.12237307,89031.0,89030.0,0.00111553]
[1765762642390,0.11237307,89031.0,89030.0,0.00011553]
[1765762642529,0.11537307,89031.0,89030.0,0.00011553]
[1765762642728,0.11837307,89031.0,89030.0,0.0017284]
[1765762642958,0.006,89031.0,89030.0,0.0017284]
[1765762643158,0.006,89031.0,89030.0,0.0411984]
[1765762643989,0.003,89031.0,89030.0,0.0411984]
[1765762644200,0.003,89031.0,89030.0,0.09730339]
[1765762644411,0.003,89031.0,89030.0,0.10030339]
[1765762644618,0.11237307,89052.0,89049.0,0.01122977]
[1765762644825,0.01122977,89049.0,89044.0,0.0112304]
[1765762645049,0.11237307,89052.0,89050.0,0.22459214]
[1765762645268,0.00024369,89054.0,89051.0,0.01122952]
[1765762645476,0.00024369,89054.0,89053.0,0.22458535]
[1765762645716,0.00024369,89054.0,89053.0,0.26566822]
[1765762646779,0.02745369,89054.0,89053.0,0.22619822]
[1765762646978,0.02745369,89054.0,89048.0,0.01122989]
[1765762646980,0.02745369,89054.0,89031.0,0.02960196]
[1765762646981,0.22463076,89035.0,89031.0,0.02960196]
[1765762647214,0.22463833,89032.0,89030.0,0.00011553]
[1765762647414,0.13420137,89031.0,89030.0,0.00011553]
[1765762647655,0.0218283,89031.0,89030.0,0.00011553]
[1765762647855,0.13420137,89031.0,89030.0,0.00011553]
[1765762648233,0.17312137,89031.0,89030.0,0.00011553]
[1765762648634,0.46382137,89031.0,89030.0,0.00011553]
[1765762648953,0.44199307,89031.0,89030.0,0.00311553]
[1765762649170,1.49201146,89031.0,89030.0,0.00511553]
[1765762649356,1.49201146,89031.0,89030.0,0.00211553]
[1765762649880,1.49301146,89031.0,89030.0,0.00211553]
[1765762650654,0.82399307,89031.0,89030.0,0.00211553]
[1765762650869,0.82299307,89031.0,89030.0,0.00011553]
[1765762651078,0.46183307,89031.0,89030.0,0.00011553]
[1765762651250,0.46183307,89031.0,89030.0,0.00111553]
[1765762651251,0.47383307,89031.0,89030.0,0.00111553]
[1765762651452,0.18113307,89031.0,89030.0,0.00111553]
[1765762651675,0.19596137,89031.0,89030.0,0.00011553]
[1765762652119,0.19396137,89031.0,89030.0,0.00011553]
[1765762652267,0.19796137,89031.0,89030.0,0.00011553]
[1765762652968,1.19796137,89031.0,89030.0,0.00011553]
[1765762653170,0.17613307,89031.0,89030.0,0.00011553]
[1765762653375,0.19796137,89031.0,89030.0,0.00011553]
[1765762654800,0.19496137,89031.0,89030.0,0.00011553]
[1765762655005,0.17111137,89031.0,89030.0,0.00011553]
[1765762655206,0.14528307,89031.0,89030.0,0.00011553]
[1765762655431,0.002,89031.0,89030.0,0.00011553]
[1765762656319,0.002,89031.0,89030.0,0.0406384]
[1765762656520,0.002,89031.0,89030.0,0.0017284]
[1765762656908,0.0218283,89031.0,89030.0,0.0017284]
[1765762657147,0.0228283,89031.0,89030.0,0.00011553]
[1765762657409,0.13420137,89031.0,89030.0,0.00011553]
[1765762657627,0.11237307,89031.0,89030.0,0.00011553]
[1765762657825,0.11237307,89031.0,89030.0,0.00111553]
[1765762658524,0.22461921,89040.0,89033.0,0.01123179]
[1765762658792,0.02286,89053.0,89031.0,0.01123204]
[1765762658793,0.01123153,89035.0,89031.0,0.01123204]
[1765762658960,0.01123153,89035.0,89032.0,0.01123191]
[1765762659180,0.01123103,89039.0,89032.0,0.01123191]
[1765762659181,0.22459494,89050.0,89043.0,0.01123052]
[1765762659379,0.11237307,89058.0,89043.0,0.01123052]
[1765762659380,0.00024369,89054.0,89052.0,0.22458561]
[1765762659589,0.00024369,89054.0,89052.0,0.00161287]
[1765762659812,0.01122964,89050.0,89047.0,0.01123002]
[1765762660050,0.11237307,89051.0,89049.0,0.22459544]
[1765762660226,0.11237307,89051.0,89050.0,0.01122964]
[1765762660435,0.11237307,89051.0,89048.0,0.01122989]
[1765762660606,0.01123015,89046.0,89042.0,0.23584259]
[1765762660831,0.01123015,89046.0,89043.0,0.01123052]
[1765762661041,0.01122989,89048.0,89044.0,0.23583746]
[1765762661241,0.01122977,89049.0,89046.0,0.01123015]
[1765762661846,0.0112304,89044.0,89043.0,0.001]
[1765762662058,0.0112304,89044.0,89043.0,0.002]
[1765762662256,0.0112304,89044.0,89043.0,0.001]
[1765762663176,0.01123027,89045.0,89043.0,0.001]
[1765762663338,0.01123027,89045.0,89042.0,0.01123065]
[1765762663543,0.22461637,89041.0,89033.0,0.04098805]
[1765762663763,0.01123103,89039.0,89036.0,0.01123141]
[1765762664128,0.01122989,89048.0,89038.0,0.01515]
[1765762664334,0.00024369,89054.0,89047.0,0.01123002]
[1765762664544,0.00024369,89054.0,89051.0,0.01122952]
[1765762665194,0.23605645,89054.0,89049.0,0.01122977]
[1765762665395,0.23605645,89054.0,89050.0,0.09586972]
[1765762665396,0.01147283,89054.0,89050.0,0.09586972]
[1765762665595,0.11237307,89052.0,89051.0,0.01122952]
[1765762665814,0.11237307,89052.0,89050.0,0.08464008]
[1765762666020,0.11237307,89052.0,89042.0,0.22461245]
[1765762666021,0.0112304,89044.0,89041.0,0.01123078]
[1765762666198,0.0112304,89044.0,89039.0,0.01123103]
[1765762666402,0.0112304,89044.0,89037.0,0.01123128]
[1765762666403,0.2358442,89042.0,89037.0,0.01123128]
[1765762666605,0.2358442,89042.0,89038.0,0.00161287]
[1765762666606,0.01123078,89041.0,89038.0,0.00161287]
[1765762666805,0.01123065,89042.0,89038.0,0.00161287]
[1765762667212,0.01123078,89041.0,89038.0,0.00161287]
[1765762667416,0.01123078,89041.0,89038.0,0.00261287]
[1765762667646,0.22461814,89040.0,89038.0,0.00261287]
[1765762667821,0.12745307,89039.0,89038.0,0.00461287]
[1765762668008,0.12745307,89039.0,89038.0,0.003]
[1765762668202,0.14928137,89039.0,89038.0,0.002]
[1765762668446,0.01123115,89038.0,89035.0,0.01123153]
[1765762668644,0.11237307,89036.0,89034.0,0.01123166]
[1765762668850,0.11237307,89036.0,89032.0,0.30193191]
[1765762668851,0.01123128,89037.0,89032.0,0.01123191]
[1765762669163,0.11237307,89053.0,89034.0,0.22463328]
[1765762669164,0.01123065,89042.0,89034.0,0.22463328]
[1765762669555,0.01123065,89042.0,89038.0,0.01123115]
[1765762669761,0.22459037,89052.0,89039.0,0.01123103]
[1765762669959,0.01123027,89045.0,89041.0,0.01123078]
[1765762670199,0.01122964,89050.0,89043.0,0.22461058]
[1765762670410,0.01122977,89049.0,89048.0,0.08464008]
[1765762670746,0.01122977,89049.0,89041.0,0.02336365]
[1765762670747,0.01122977,89049.0,89043.0,0.01123052]
[1765762670951,0.01123002,89047.0,89043.0,0.01123052]
[1765762671159,0.01123002,89047.0,89046.0,0.08464008]
[1765762671396,0.11237307,89051.0,89047.0,0.01123002]
[1765762671781,0.12360259,89051.0,89048.0,0.01122989]
[1765762671987,0.00024369,89054.0,89049.0,0.22459544]
[1765762672320,0.00024369,89054.0,89051.0,0.01122952]
[1765762672525,0.01122952,89051.0,89046.0,0.01123015]
[1765762672724,0.22458535,89053.0,89046.0,0.01123015]
[1765762672725,0.22458535,89053.0,89047.0,0.23582975]
[1765762673041,0.22458535,89053.0,89046.0,0.01123015]
[1765762673042,0.11237307,89049.0,89046.0,0.01123015]
[1765762673270,0.01122989,89048.0,89044.0,0.0112304]
[1765762673493,0.23583185,89047.0,89043.0,0.01123052]
[1765762673698,0.23583185,89047.0,89041.0,0.00161287]
[1765762673699,0.0112304,89044.0,89041.0,0.00161287]
[1765762674001,0.0218283,89044.0,89041.0,0.22622787]
[1765762674145,0.01122977,89049.0,89045.0,0.01123027]
[1765762674346,0.01122977,89049.0,89042.0,0.01123065]
[1765762674347,0.11237307,89053.0,89051.0,0.01122952]
[1765762674714,0.11237307,89053.0,89050.0,0.01122964]
[1765762674715,0.12360233,89053.0,89050.0,0.01122964]
[1765762674921,0.11237307,89053.0,89050.0,0.01122964]
[1765762675122,0.11237307,89053.0,89050.0,0.23582187]
[1765762675324,0.11237307,89053.0,89050.0,0.01122964]
[1765762675478,0.11237307,89053.0,89047.0,0.01323002]
[1765762675479,0.01122939,89052.0,89047.0,0.01323002]
[1765762675677,0.01122939,89052.0,89049.0,0.01122977]
[1765762675884,0.11237307,89053.0,89050.0,0.23582256]
[1765762676208,0.12360233,89053.0,89049.0,0.01122977]
[1765762676389,0.01122939,89052.0,89049.0,0.01122977]
[1765762676770,0.23581781,89052.0,89048.0,0.01122989]
[1765762676982,0.12360233,89053.0,89050.0,0.01222964]
[1765762677217,0.11237307,89053.0,89050.0,0.23682184]
[1765762677533,0.00024369,89054.0,89050.0,0.23682184]
[1765762677534,0.00024369,89054.0,89053.0,0.22458535]
[1765762678154,0.00024369,89054.0,89053.0,0.22619822]
[1765762678353,0.00024369,89054.0,89053.0,0.24239822]
[1765762678783,0.00024369,89054.0,89053.0,0.26525822]
[1765762679276,0.00024369,89054.0,89053.0,0.24239822]
[1765762679496,0.00024369,89054.0,89053.0,0.26625822]
[1765762680223,0.00024369,89054.0,89053.0,0.24339822]
[1765762680635,0.00024369,89054.0,89053.0,0.22719822]
[1765762681095,0.00024369,89054.0,89053.0,0.00261287]
[1765762681513,0.15128676,89054.0,89053.0,0.001]
[1765762681754,0.06074199,89054.0,89053.0,0.001]
[1765762681957,0.06074199,89054.0,89053.0,0.0172]
[1765762681958,0.00024369,89054.0,89053.0,0.0172]
[1765762682163,0.00024369,89054.0,89053.0,0.001]
[1765762682367,0.00024369,89054.0,89051.0,0.01122952]
[1765762682368,0.11237307,89053.0,89051.0,0.22458956]
[1765762682569,0.12388307,89053.0,89050.0,0.01122964]
[1765762682770,0.12388307,89053.0,89045.0,0.01123027]
[1765762682972,0.22459119,89051.0,89046.0,0.01123015]
[1765762683176,0.01122964,89050.0,89046.0,0.01123015]
[1765762683384,0.12388307,89053.0,89048.0,0.01122989]
[1765762683385,0.11237307,89053.0,89048.0,0.01122989]
[1765762683594,0.00024369,89054.0,89051.0,0.23581751]
[1765762683802,0.00024369,89054.0,89053.0,0.22458535]
[1765762684426,0.00024369,89054.0,89053.0,0.24078535]
[1765762684638,0.00024369,89054.0,89053.0,0.26525822]
[1765762685899,0.00024369,89054.0,89053.0,0.60597661]
[1765762686113,0.11237307,89086.0,89083.0,0.01122548]
[1765762686331,0.01166,89091.0,89088.0,0.01122485]
[1765762686332,0.12403307,89091.0,89088.0,0.01122485]
[1765762686537,0.11237307,89091.0,89088.0,0.01122485]
[1765762686745,0.11237307,89091.0,89088.0,0.23572134]
[1765762686954,0.11237307,89091.0,89086.0,0.23572566]
[1765762687164,0.23613942,89096.0,89086.0,0.23572566]
[1765762687165,0.01122334,89100.0,89095.0,0.01122397]
[1765762687373,0.01122334,89100.0,89086.0,0.22611343]
[1765762687374,0.01122372,89097.0,89094.0,0.0112241]
[1765762687583,0.01122397,89095.0,89091.0,0.02742447]
[1765762687791,0.01122435,89092.0,89088.0,0.01122485]
[1765762688005,0.01122435,89092.0,89089.0,0.01122473]
[1765762688448,0.01122447,89091.0,89087.0,0.01122498]
[1765762688804,0.0112246,89090.0,89088.0,0.001]
[1765762689232,0.0112246,89090.0,89083.0,0.23573397]
[1765762689233,0.0112246,89090.0,89083.0,0.0178]
[1765762689234,0.01122523,89085.0,89083.0,0.0178]
[1765762689405,0.11237307,89084.0,89081.0,0.01122573]
[1765762689606,0.11237307,89089.0,89086.0,0.23572625]
[1765762689807,0.11237307,89090.0,89089.0,0.01122473]
[1765762690012,0.11237307,89089.0,89087.0,0.08664008]
[1765762690205,0.11237307,89089.0,89087.0,0.08464008]
[1765762690408,0.22447504,89097.0,89087.0,0.08464008]
[1765762690409,0.01166,89094.0,89091.0,0.01122447]
[1765762690607,0.01166,89094.0,89092.0,0.22448704]
[1765762690965,0.01122422,89093.0,89089.0,0.01122473]
[1765762691107,0.01166,89094.0,89090.0,0.0112246]
[1765762691108,0.0112241,89094.0,89090.0,0.0112246]
[1765762691507,0.01122397,89095.0,89092.0,0.01122435]
[1765762691707,0.01241165,89093.0,89090.0,0.0112246]
[1765762691912,0.01122447,89091.0,89088.0,0.01122485]
[1765762692142,0.11237307,89091.0,89089.0,0.01122473]
[1765762692543,0.25126668,89090.0,89087.0,0.00161287]
[1765762692775,0.23571668,89090.0,89087.0,0.00161287]
[1765762692973,0.0112246,89090.0,89087.0,0.00161287]
[1765762693293,0.0449483,89089.0,89088.0,0.002]
[1765762693614,0.15732137,89089.0,89088.0,0.002]
[1765762693824,0.11237307,89083.0,89080.0,0.01122586]
[1765762694040,0.11237307,89083.0,89076.0,0.22452681]
[1765762694041,0.11237307,89078.0,89077.0,0.01122624]
[1765762694273,0.22449878,89088.0,89077.0,0.01122624]
[1765762694274,0.22447403,89098.0,89087.0,0.22449909]
[1765762694483,0.11237307,89100.0,89097.0,0.01122372]
[1765762694691,0.11237307,89100.0,89095.0,0.22447894]
[1765762694692,0.12359641,89100.0,89095.0,0.01122397]
[1765762694898,0.01122359,89098.0,89093.0,0.01122422]
[1765762695094,0.01122372,89097.0,89093.0,0.01122422]
[1765762695230,0.01122422,89093.0,89087.0,0.23733655]
[1765762695431,0.001,89089.0,89088.0,0.01122485]
[1765762695905,0.22445603,89105.0,89100.0,0.2356885]
[1765762695906,0.0218283,89103.0,89100.0,0.2356885]
[1765762696280,0.11237307,89107.0,89100.0,0.2356885]
[1765762696281,0.11237307,89107.0,89103.0,0.22445933]
[1765762696493,0.23566074,89112.0,89103.0,0.22445933]
[1765762696494,0.23566074,89112.0,89106.0,0.02742258]
[1765762696495,0.23565932,89112.0,89106.0,0.02742258]
[1765762696696,0.01122208,89110.0,89106.0,0.02742258]
[1765762696903,0.01122258,89106.0,89103.0,0.0103]
[1765762697107,0.01122271,89105.0,89101.0,0.01122321]
[1765762697314,0.01122258,89106.0,89102.0,0.01122309]
[1765762697525,0.11237307,89101.0,89100.0,0.00161287]
[1765762697737,0.11237307,89101.0,89087.0,0.22449862]
[1765762697738,0.01122384,89096.0,89090.0,0.0112246]
[1765762697942,0.11237307,89102.0,89096.0,0.01122384]
[1765762698149,0.14542446,89102.0,89098.0,0.01122359]
[1765762698410,0.14542446,89102.0,89099.0,0.01122347]
[1765762698650,0.22544198,89110.0,89104.0,0.01122284]
[1765762698651,0.002,89107.0,89104.0,0.01122284]
[1765762698867,0.1235954,89108.0,89105.0,0.01122271]
[1765762699297,0.11237307,89108.0,89105.0,0.01122271]
[1765762699505,0.34804329,89108.0,89102.0,0.01122309]
[1765762699730,0.1235954,89108.0,89103.0,0.01122296]
[1765762699933,0.01122296,89103.0,89099.0,0.01122347]
[1765762700150,0.002,89107.0,89102.0,0.01122309]
[1765762700361,0.11237307,89108.0,89105.0,0.235677]
[1765762700569,0.0218283,89115.0,89111.0,0.01122195]
[1765762700774,0.0218283,89115.0,89108.0,0.01122233]
[1765762700775,0.11237307,89111.0,89108.0,0.01122233]
[1765762700958,0.01122158,89114.0,89109.0,0.01122221]
[1765762701151,0.01122132,89116.0,89112.0,0.01122183]
[1765762701358,0.01122082,89120.0,89114.0,0.23565209]
[1765762701594,0.23563153,89123.0,89107.0,0.08464008]
[1765762701595,0.01122158,89114.0,89107.0,0.01122246]
[1765762701831,0.0220283,89122.0,89103.0,0.0178]
[1765762701832,0.01122258,89106.0,89103.0,0.0178]
[1765762701987,0.01122258,89106.0,89099.0,0.01122347]
[1765762701989,0.11237307,89102.0,89099.0,0.01122347]
[1765762702165,0.863028,89120.0,89110.0,0.01122208]
[1765762702166,0.01122145,89115.0,89110.0,0.01122208]
[1765762702366,0.11237307,89113.0,89110.0,0.01122208]
[1765762702572,0.01222145,89115.0,89111.0,0.01122195]
[1765762702772,0.01222145,89115.0,89109.0,0.01122221]
[1765762702773,0.2356532,89114.0,89109.0,0.01122221]
[1765762702984,0.01122183,89112.0,89109.0,0.01122221]
[1765762703322,0.22442823,89116.0,89109.0,0.01122221]
[1765762703323,0.00170471,89110.0,89109.0,0.00161287]
[1765762703771,0.00170471,89110.0,89109.0,0.07391786]
[1765762703979,0.00170471,89110.0,89109.0,0.04067287]
[1765762704388,0.00170471,89110.0,89109.0,0.33137287]
[1765762704823,0.00170471,89110.0,89109.0,0.34917287]
[1765762705026,0.00170471,89110.0,89109.0,0.32631287]
[1765762705232,0.00170471,89110.0,89109.0,0.01781287]
[1765762705457,0.00170471,89110.0,89109.0,0.05847287]
[1765762706010,0.00170471,89110.0,89109.0,0.06047287]
[1765762706227,0.00170471,89110.0,89109.0,0.05947287]
[1765762706427,0.00170471,89110.0,89109.0,0.05847287]
[1765762706789,0.00170471,89110.0,89109.0,0.06567287]
[1765762707109,0.00170471,89110.0,89109.0,0.06536341]
[1765762707336,0.00170471,89110.0,89109.0,0.1462944]
[1765762707787,0.00170471,89110.0,89109.0,0.60233028]
[1765762707993,0.0002,89122.0,89121.0,0.51511399]
[1765762708162,0.0002,89134.0,89121.0,0.51511399]
[1765762708163,0.0002,89134.0,89133.0,0.51508378]
[1765762708370,0.0002,89134.0,89133.0,0.55008719]
[1765762708571,0.0002,89134.0,89133.0,0.62279558]
[1765762709406,0.0002,89134.0,89133.0,0.73511307]
[1765762710060,0.0112144,89171.0,89133.0,0.73511307]
[1765762710061,0.22426962,89179.0,89146.0,0.2907]
[1765762710271,0.22426008,89183.0,89175.0,0.0112139]
[1765762710272,0.01121315,89181.0,89175.0,0.0112139]
[1765762710500,0.01121315,89181.0,89172.0,0.22428565]
[1765762710501,0.01121252,89186.0,89180.0,0.23547839]
[1765762710739,0.22422182,89198.0,89180.0,0.23547839]
[1765762710740,0.01121126,89196.0,89188.0,0.01121227]
[1765762710960,0.01121101,89198.0,89195.0,0.0159]
[1765762711203,0.01411076,89200.0,89196.0,0.3066]
[1765762711204,0.0029,89200.0,89196.0,0.3066]
[1765762711419,0.00047696,89197.0,89196.0,0.33059341]
[1765762712266,0.0029,89200.0,89196.0,0.33059341]
[1765762712267,0.0029,89200.0,89196.0,0.3806118]
[1765762712471,0.0229666,89207.0,89206.0,0.51490016]
[1765762712690,0.0229666,89207.0,89206.0,0.59992196]
[1765762712909,0.0229666,89207.0,89206.0,0.73492945]
[1765762713121,0.0218283,89233.0,89206.0,0.73492945]
[1765762713122,0.0218283,89233.0,89232.0,0.22413483]
[1765762713362,0.01248,89260.0,89232.0,0.22413483]
[1765762713363,0.01248,89260.0,89232.0,0.01910341]
[1765762713364,0.01120636,89235.0,89232.0,0.01910341]
[1765762713592,0.01120799,89222.0,89214.0,0.011209]
[1765762713803,0.22415186,89226.0,89214.0,0.011209]
[1765762713804,0.00030946,89233.0,89228.0,0.01120724]
[1765762714016,0.22410491,89244.0,89235.0,0.01120636]
[1765762714017,0.01120536,89243.0,89235.0,0.01120636]